bitfinex-derivatives/quotes_ETHF0:USTF0_20250712
["timestamp","ask_amount","ask_price","bid_price","bid_amount"]
[1752325139848,6.0197,2944.5,2944.4,5.3719]
[1752325140045,6.0197,2944.5,2944.2,3.2078]
[1752325140046,0.67904,2944.3,2944.2,3.2078]
[1752325140254,6.01974,2944.3,2944.2,3.2078]
[1752325143055,6.01974,2944.3,2944.2,8.5797]
[1752325143251,1.8321,2944.3,2944.2,8.5797]
[1752325143447,5.02734,2944.7,2944.6,5.3719]
[1752325143954,6.01964,2944.7,2944.6,5.3719]
[1752325144349,5.02734,2944.7,2944.6,5.3719]
[1752325144551,6.01964,2944.7,2944.6,5.3719]
[1752325144746,6.01964,2944.7,2944.6,2.7729]
[1752325145050,6.01964,2944.7,2944.6,5.3719]
[1752325145246,6.01967,2944.6,2944.5,3.2078]
[1752325145448,2.51121,2944.0,2943.9,0.9446]
[1752325145643,6.01981,2944.0,2943.9,2.7729]
[1752325146851,0.67913,2943.9,2943.8,3.2078]
[1752325147054,6.01983,2943.9,2943.8,3.2078]
[1752325148545,4.3484,2943.2,2943.1,5.0361]
[1752325148749,5.02769,2943.2,2943.1,8.5797]
[1752325148955,6.01999,2943.2,2943.1,8.5797]
[1752325149455,0.67926,2943.4,2943.2,3.5436]
[1752325149656,3.5086,2943.7,2943.6,1.8283]
[1752325149657,6.01988,2943.7,2943.6,1.8283]
[1752325149850,6.01988,2943.7,2943.4,0.9446]
[1752325149851,4.3484,2943.3,2943.2,1.8283]
[1752325150057,6.01997,2943.3,2943.2,1.8283]
[1752325150257,0.67929,2943.2,2943.1,3.2078]
[1752325150458,6.01999,2943.2,2943.1,5.9807]
[1752325150654,6.01999,2943.2,2943.1,8.5797]
[1752325151258,6.01999,2943.2,2943.1,5.0361]
[1752325151454,5.3407,2943.2,2943.1,9.25901]
[1752325151652,4.3484,2943.2,2943.1,9.25901]
[1752325151859,1.8321,2943.2,2943.1,9.25901]
[1752325152159,3.2078,2943.6,2943.5,6.05112]
[1752325152360,5.7191,2943.6,2943.5,5.3719]
[1752325152561,9.2277,2943.6,2943.5,5.3719]
[1752325152957,8.5485,2943.6,2943.5,2.7729]
[1752325153163,1.8321,2943.3,2943.2,1.8283]
[1752325153359,1.8321,2943.3,2943.2,5.14079]
[1752325153563,3.2078,2943.6,2943.5,4.4615]
[1752325153764,8.5869,2943.6,2943.5,6.08532]
[1752325153965,5.2373,2943.3,2943.2,5.3739]
[1752325154166,5.2373,2943.2,2943.1,3.88711]
[1752325154467,2.6826,2943.4,2943.3,5.3739]
[1752325154662,1.6903,2943.4,2943.3,5.3739]
[1752325154864,2.6826,2943.4,2943.3,2.7407]
[1752325155069,5.2373,2943.4,2943.3,2.7407]
[1752325155568,5.91655,2943.4,2943.3,1.7961]
[1752325155969,5.2373,2943.4,2943.3,2.47537]
[1752325156170,5.2373,2943.4,2943.3,6.02817]
[1752325156469,5.2373,2943.4,2943.3,5.3489]
[1752325156967,5.2373,2943.4,2943.3,6.02817]
[1752325157169,4.245,2943.4,2943.3,6.02817]
[1752325157368,3.2078,2943.6,2943.5,1.7961]
[1752325157369,4.245,2943.6,2943.5,1.7961]
[1752325157568,4.9242,2943.6,2943.5,5.3489]
[1752325157862,5.8655,2943.6,2943.5,5.3489]
[1752325159367,2.36957,2943.3,2943.2,2.6332]
[1752325159673,4.245,2943.3,2943.2,5.10859]
[1752325159868,4.92427,2943.3,2943.2,5.3489]
[1752325160167,1.6903,2943.3,2943.2,5.3489]
[1752325160471,1.6903,2943.3,2943.2,6.02819]
[1752325160673,2.36954,2943.5,2943.4,1.7961]
[1752325160971,4.92424,2943.5,2943.4,5.3489]
[1752325161171,2.36954,2943.5,2943.4,5.3489]
[1752325161363,3.496,2943.8,2943.4,5.3489]
[1752325161364,5.86534,2944.3,2944.2,1.7961]
[1752325161864,1.6903,2944.1,2944.0,2.7157]
[1752325162064,1.6903,2944.1,2943.7,1.7961]
[1752325162065,1.6903,2943.8,2943.7,1.7961]
[1752325162266,1.6903,2943.8,2943.7,5.3489]
[1752325162470,2.36945,2943.8,2943.7,7.17447315]
[1752325162664,4.92415,2943.8,2943.7,7.17447315]
[1752325162867,3.496,2943.6,2943.5,1.82557315]
[1752325163064,5.8655,2943.6,2943.5,2.7157]
[1752325163761,3.23392,2943.5,2943.4,1.82736284]
[1752325163964,2.36955,2943.4,2943.3,2.74696284]
[1752325164267,5.86555,2943.4,2943.3,2.7157]
[1752325164966,3.2078,2943.9,2943.3,4.54364071]
[1752325165166,4.92415,2943.8,2943.7,1.7961]
[1752325165370,5.86545,2943.8,2943.7,1.7961]
[1752325165770,5.86545,2943.8,2943.7,2.7157]
[1752325165970,2.36948,2943.7,2943.6,1.82794071]
[1752325166266,5.86548,2943.7,2943.6,4.54364071]
[1752325166766,4.17522,2943.5,2943.4,4.54364071]
[1752325166972,5.86552,2943.5,2943.4,7.17684071]
[1752325168063,5.86552,2943.5,2943.4,4.54364071]
[1752325168271,5.86552,2943.5,2943.4,1.7961]
[1752325168467,5.86552,2943.5,2943.4,5.3489]
[1752325169572,5.86552,2943.5,2943.4,6.5681406]
[1752325170563,5.86552,2943.5,2943.4,3.0153406]
[1752325170966,5.86552,2943.5,2943.4,3.62404071]
[1752325171362,5.86552,2943.5,2943.4,1.7961]
[1752325172768,5.86552,2943.5,2943.4,2.7157]
[1752325172966,5.86552,2943.5,2943.4,4.54476033]
[1752325173168,5.86552,2943.5,2943.4,5.3489]
[1752325173373,5.86552,2943.5,2943.4,7.17835394]
[1752325173768,5.86552,2943.5,2943.4,5.3489]
[1752325174270,5.86552,2943.5,2943.4,7.17835394]
[1752325174573,5.1863,2943.5,2943.4,7.17835394]
[1752325174872,5.86552,2943.5,2943.4,7.17835394]
[1752325175175,5.86552,2943.5,2943.4,5.3489]
[1752325177276,4.245,2943.5,2943.4,6.02815]
[1752325177471,4.245,2943.5,2943.4,5.3489]
[1752325177472,4.92422,2943.5,2943.4,5.3489]
[1752325178175,5.86552,2943.5,2943.4,5.3489]
[1752325178877,2.36945,2943.8,2943.7,5.3489]
[1752325179266,1.6903,2943.8,2943.7,6.02808]
[1752325179870,4.245,2943.8,2943.7,6.02808]
[1752325180670,5.1863,2944.6,2944.5,6.02789]
[1752325181571,0.18074772,2945.2,2944.5,0.9196]
[1752325181773,5.1863,2944.8,2944.7,7.24801714]
[1752325181973,5.86522,2944.8,2944.7,6.56908714]
[1752325182285,5.86522,2944.8,2944.7,3.93588714]
[1752325182471,5.86522,2944.8,2944.7,3.01628714]
[1752325183278,5.86522,2944.8,2944.7,1.7961]
[1752325183672,5.86522,2944.8,2944.7,5.3366]
[1752325183872,4.99526,2945.1,2945.0,5.3519]
[1752325184177,3.3256,2944.9,2944.8,1.8114]
[1752325184374,5.9517,2944.9,2944.8,1.8114]
[1752325184677,5.9517,2944.9,2944.8,2.731]
[1752325185980,5.98902,2944.8,2944.7,4.00043054]
[1752325186169,4.3315,2944.8,2944.7,6.62133054]
[1752325186372,1.7054,2944.8,2944.7,6.62133054]
[1752325186572,1.7054,2944.8,2944.7,7.91233072]
[1752325186776,0.67889,2945.0,2944.7,4.32063072]
[1752325186970,2.38429,2945.0,2944.9,3.02798033]
[1752325187272,5.01038,2945.0,2944.9,5.4031]
[1752325188573,4.94268,2945.0,2944.9,5.4031]
[1752325190674,5.92128,2945.0,2944.9,5.4031]
[1752325191876,5.92128,2945.0,2944.9,1.8114]
[1752325192077,5.92128,2945.0,2944.9,2.7822]
[1752325192275,5.92128,2945.0,2944.9,5.4031]
[1752325192675,1.7054,2944.9,2944.6,1.21658033]
[1752325192975,5.98902,2944.8,2944.7,6.61968033]
[1752325193180,5.98902,2944.8,2944.7,5.4031]
[1752325193375,5.98902,2944.8,2944.7,1.8114]
[1752325194080,5.01042,2944.8,2944.7,5.4031]
[1752325195177,5.98902,2944.8,2944.7,5.4031]
[1752325198382,5.01042,2944.8,2944.7,5.4031]
[1752325198788,5.98902,2944.8,2944.7,5.4031]
[1752325199392,2.38432,2944.8,2944.7,6.61968033]
[1752325199583,5.98902,2944.8,2944.7,5.4031]
[1752325199780,5.98902,2944.8,2944.7,1.8114]
[1752325200681,5.98909,2944.5,2944.4,3.02798033]
[1752325200885,1.7054,2944.4,2944.2,0.61498843]
[1752325201190,2.38462,2943.5,2943.4,6.87354977]
[1752325201389,1.7054,2943.5,2943.4,7.84434977]
[1752325201588,6.84174494,2943.5,2943.4,4.25264977]
[1752325201895,2.38467,2943.3,2943.2,2.43096462]
[1752325202193,9.19717,2943.3,2943.2,2.43096462]
[1752325202389,7.5393,2943.3,2943.2,7.83406462]
[1752325202584,4.3315,2943.3,2943.2,8.6109]
[1752325202787,5.98937,2943.3,2943.2,5.4031]
[1752325202981,5.98937,2943.3,2943.2,4.2428476]
[1752325203184,5.3101,2943.1,2943.0,8.44824268]
[1752325203391,5.98941,2943.1,2943.0,3.04514268]
[1752325203589,2.38474,2943.0,2942.9,3.04514268]
[1752325203786,5.3101,2943.0,2942.9,4.85654268]
[1752325204184,5.3101,2943.0,2942.9,5.82734268]
[1752325204390,5.3101,2943.0,2942.9,5.4031]
[1752325204592,5.98944,2943.0,2942.9,5.4031]
[1752325204988,1.7054,2942.9,2942.8,1.8114]
[1752325205291,4.3315,2942.9,2942.8,5.4031]
[1752325205692,5.3101,2942.9,2942.8,5.4031]
[1752325206292,4.3315,2942.7,2942.6,1.8114]
[1752325206496,5.3101,2942.7,2942.6,5.4031]
[1752325206697,4.3315,2942.7,2942.6,5.4031]
[1752325206999,0.9786,2943.1,2942.8,5.4031]
[1752325207000,4.3315,2942.9,2942.8,5.4031]
[1752325207292,4.3315,2942.9,2942.8,6.08248]
[1752325207597,4.3315,2942.9,2942.8,5.4031]
[1752325207799,4.3315,2942.9,2942.8,6.08248]
[1752325208091,4.3315,2942.9,2942.8,5.4031]
[1752325208291,5.3101,2942.9,2942.8,5.4031]
[1752325208492,5.98946,2942.9,2942.8,2.7822]
[1752325208793,5.3101,2942.9,2942.8,2.7822]
[1752325209593,5.3101,2942.9,2942.8,6.08248]
[1752325209798,5.3101,2942.9,2942.8,5.4031]
[1752325210301,5.3101,2942.9,2942.8,2.7822]
[1752325210794,5.3101,2942.9,2942.8,6.08248]
[1752325211287,5.3101,2942.9,2942.8,5.4031]
[1752325211490,5.98946,2942.9,2942.8,5.4031]
[1752325211693,5.3101,2942.9,2942.8,5.4031]
[1752325211895,5.98946,2942.9,2942.8,5.4031]
[1752325212288,5.98946,2942.9,2942.7,3.2078]
[1752325212289,5.3101,2942.8,2942.5,3.5917]
[1752325212494,3.6047,2942.5,2942.4,5.0192]
[1752325212693,1.7054,2942.3,2942.2,5.4031]
[1752325212890,5.3101,2942.3,2942.0,3.2078]
[1752325213200,5.3101,2942.1,2942.0,5.99]
[1752325213397,5.43738593,2942.1,2942.0,5.0192]
[1752325213593,4.75783593,2942.1,2942.0,6.66957]
[1752325213799,4.75783593,2942.1,2942.0,8.6673]
[1752325214103,4.75783593,2942.1,2942.0,9.34687]
[1752325214288,1.15313593,2942.1,2941.4,3.2078]
[1752325214489,1.75,2941.6,2941.5,6.05517]
[1752325214697,1.34213684,2941.6,2941.5,5.3755]
[1752325214895,4.99643684,2941.6,2941.5,5.3755]
[1752325215898,5.67609684,2941.6,2941.5,5.3755]
[1752325216100,4.99643684,2941.6,2941.5,5.3755]
[1752325216298,5.67609684,2941.6,2941.5,5.3755]
[1752325216897,5.67609684,2941.6,2941.5,4.4047]
[1752325217102,6.05685,2941.2,2941.1,3.2078]
[1752325217300,3.3812,2941.0,2940.9,2.6547]
[1752325217497,6.0569,2941.0,2940.9,1.7274]
[1752325217704,6.0569,2941.0,2940.7,3.2078]
[1752325217705,2.42984,2940.8,2940.7,2.6547]
[1752325218008,6.05694,2940.8,2940.7,1.7274]
[1752325218401,6.05694,2940.8,2940.4,8.5398]
[1752325218402,1.75,2940.5,2940.4,8.5398]
[1752325218699,1.75,2940.5,2940.4,7.6125]
[1752325218895,0.68001,2940.1,2940.0,4.1351]
[1752325219101,5.3771,2940.1,2940.0,4.9352]
[1752325219297,2.6757,2940.4,2940.1,3.6046]
[1752325219497,6.05708,2940.2,2940.1,5.332]
[1752325219702,5.3771,2940.2,2940.1,5.332]
[1752325219899,6.05708,2940.2,2940.0,3.2078]
[1752325220095,3.2078,2940.5,2940.0,5.8625]
[1752325220096,0.9514,2940.1,2940.0,5.8625]
[1752325220308,2.7014,2940.1,2940.0,8.5398]
[1752325220503,5.3771,2940.1,2940.0,8.5398]
[1752325221102,1.75,2940.1,2940.0,8.5398]
[1752325221808,5.3771,2940.0,2939.9,4.4047]
[1752325222011,5.3771,2940.0,2939.9,5.332]
[1752325222503,1.75,2939.8,2939.7,7.6125]
[1752325222704,3.6271,2940.7,2940.3,4.4047]
[1752325222911,3.2078,2940.9,2940.6,4.4047]
[1752325223106,1.75,2940.8,2940.7,1.7274]
[1752325223806,1.75,2940.8,2940.7,5.332]
[1752325224812,2.7014,2940.8,2940.7,5.332]
[1752325225009,5.3771,2940.8,2940.7,5.332]
[1752325225403,5.3771,2940.8,2940.7,1.7274]
[1752325225603,1.75,2940.5,2940.4,8.5398]
[1752325225808,1.75,2940.5,2940.4,5.332]
[1752325226611,0.67977,2941.2,2941.0,5.332]
[1752325226807,1.75,2941.1,2941.0,5.332]
[1752325227117,1.75,2941.1,2940.0,1.70005]
[1752325227118,1.75,2940.7,2940.6,5.332]
[1752325227609,2.42987,2940.7,2940.6,5.332]
[1752325227815,6.05699,2940.6,2940.5,6.8124]
[1752325228022,6.05699,2940.6,2940.5,8.5398]
[1752325229827,5.10559,2940.6,2940.5,3.2078]
[1752325230026,1.75,2940.2,2940.1,2.6547]
[1752325230328,3.6271,2940.8,2940.4,5.332]
[1752325230529,1.75,2940.6,2940.5,5.332]
[1752325230724,2.42991,2940.6,2940.5,5.332]
[1752325231419,1.75,2940.6,2940.5,5.332]
[1752325231620,0.67986,2940.8,2940.6,2.6773]
[1752325231823,0.67979,2941.1,2940.8,3.6046]
[1752325232028,2.42979,2941.1,2941.0,5.332]
[1752325232628,6.05689,2941.1,2941.0,5.332]
[1752325233724,5.3771,2941.4,2941.3,1.7274]
[1752325233927,6.0568,2941.4,2941.3,5.332]
[1752325234126,0.67969,2941.5,2941.3,5.332]
[1752325234320,3.6271,2941.8,2941.1,3.2078]
[1752325234321,3.6271,2941.8,2941.4,5.332]
[1752325234520,2.42967,2941.6,2941.5,8.5398]
[1752325235830,3.38107,2941.6,2941.5,8.5398]
[1752325236031,6.05677,2941.6,2941.5,8.5398]
[1752325236934,2.42976,2941.2,2941.1,8.5398]
[1752325237125,6.05678,2941.5,2941.4,1.7274]
[1752325237325,0.67968,2941.5,2941.4,8.5398]
[1752325237534,3.2078,2942.0,2941.7,2.6547]
[1752325237832,0.67963,2941.8,2941.7,5.332]
[1752325238832,2.42963,2941.8,2941.7,5.332]
[1752325239026,6.05673,2941.8,2941.7,5.332]
[1752325239333,0.67961,2941.8,2941.7,4.4047]
[1752325240032,0.67961,2941.8,2941.7,5.332]
[1752325240731,0.67961,2941.8,2941.7,7.6125]
[1752325241029,3.6271,2942.2,2941.7,7.6125]
[1752325241235,0.67961,2941.9,2941.8,5.332]
[1752325242828,3.2078,2942.5,2941.8,1.7274]
[1752325243030,3.88725,2942.5,2942.4,5.332]
[1752325243234,0.67945,2942.5,2942.4,5.332]
[1752325243831,2.42945,2942.5,2942.4,5.332]
[1752325244037,4.97805,2942.5,2942.4,5.332]
[1752325244238,5.92945,2942.5,2942.4,5.332]
[1752325244637,0.67954,2942.1,2942.0,4.9589]
[1752325244828,2.42254,2942.1,2942.0,4.9589]
[1752325245237,2.42254,2942.1,2942.0,8.3096]
[1752325245739,0.67954,2942.1,2942.0,8.3096]
[1752325245934,1.743,2942.7,2942.4,0.9902]
[1752325246139,4.90622,2942.9,2941.6,1.81120709]
[1752325246140,5.94083,2942.6,2942.5,5.1647]
[1752325246833,5.94087,2942.4,2942.3,1.7511]
[1752325247029,5.94094,2942.1,2942.0,3.2078]
[1752325247641,5.94094,2942.1,2942.0,8.3725]
[1752325247932,5.94094,2942.1,2942.0,4.9589]
[1752325248138,5.94094,2942.1,2942.0,8.3725]
[1752325248935,5.94094,2942.1,2942.0,3.2078]
[1752325249237,3.39241,2941.8,2941.7,8.3725]
[1752325249436,5.94101,2941.8,2941.7,7.3823]
[1752325249834,5.94101,2941.8,2941.7,4.1745]
[1752325250137,5.94101,2941.8,2941.5,2.80140709]
[1752325250138,3.39246,2941.6,2941.5,2.7413]
[1752325250342,5.94106,2941.6,2941.5,8.3725]
[1752325252037,2.42266,2941.6,2941.5,8.3725]
[1752325252340,1.743,2941.6,2941.5,8.3725]
[1752325252542,0.67966,2941.6,2941.5,5.9491]
[1752325252840,2.42266,2941.6,2941.5,5.9491]
[1752325253038,2.42266,2941.6,2941.5,8.3725]
[1752325253841,3.39246,2941.6,2941.5,8.3725]
[1752325255444,5.94106,2941.6,2941.5,8.3725]
[1752325256340,5.94106,2941.6,2941.5,7.3823]
[1752325256535,5.94106,2941.6,2941.5,3.2078]
[1752325257039,5.9411,2941.4,2941.3,4.1745]
[1752325257246,5.9411,2941.4,2941.3,1.7511]
[1752325257442,5.9411,2941.4,2941.3,5.1647]
[1752325259241,1.69909,2941.8,2941.3,5.1647]
[1752325259242,3.5184,2941.8,2941.3,1.7511]
[1752325259449,5.94101,2941.8,2941.7,5.1647]
[1752325259643,0.67961,2941.8,2941.7,5.1647]
[1752325260349,2.42261,2941.8,2941.7,5.1647]
[1752325260549,5.94104,2941.7,2941.6,10.18370709]
[1752325260737,5.94104,2941.7,2941.6,8.3725]
[1752325260939,5.94104,2941.7,2941.6,3.2078]
[1752325261149,2.42268,2941.5,2941.4,2.7413]
[1752325261349,5.94108,2941.5,2941.4,5.1647]
[1752325261847,5.9411,2941.4,2941.3,5.01900709]
[1752325262048,5.9411,2941.4,2941.3,3.2078]
[1752325262249,5.9411,2941.4,2941.3,7.3823]
[1752325262445,0.6797,2941.4,2941.3,10.18370709]
[1752325262642,0.6797,2941.4,2941.3,8.3725]
[1752325262843,0.6797,2941.4,2941.3,10.20041498]
[1752325263044,0.6797,2941.4,2941.3,10.20041767]
[1752325263345,3.3923,2942.3,2942.2,4.1745]
[1752325263541,5.9409,2942.3,2942.2,5.1647]
[1752325263748,1.743,2942.3,2942.2,1.7511]
[1752325263943,5.9409,2942.3,2942.2,1.7511]
[1752325264343,4.97114,2942.1,2942.0,5.0362336]
[1752325264545,5.94094,2942.1,2942.0,3.2078]
[1752325264741,2.42259,2941.9,2941.8,1.8284336]
[1752325264946,2.42259,2941.9,2941.7,4.198]
[1752325264947,0.67961,2941.8,2941.7,1.8284336]
[1752325265144,5.2614,2941.7,2941.6,3.5795336]
[1752325265451,5.94103,2941.7,2941.6,6.9931336]
[1752325265652,3.39243,2941.7,2941.6,6.9931336]
[1752325266454,5.94103,2941.7,2941.6,6.9931336]
[1752325266746,5.94103,2941.7,2941.6,4.1745]
[1752325267553,5.94103,2941.7,2941.6,1.7511]
[1752325268549,5.94103,2941.7,2941.6,4.1745]
[1752325268847,0.9698,2941.5,2941.3,1.8305273]
[1752325269049,5.94115,2941.2,2941.1,3.5816273]
[1752325269248,5.94115,2941.2,2941.1,6.9952273]
[1752325270049,5.94115,2941.2,2941.1,3.5816273]
[1752325270248,5.94115,2941.2,2941.1,1.8305273]
[1752325270455,3.39257,2941.1,2941.0,1.8305273]
[1752325270759,5.94117,2941.1,2941.0,1.7511]
[1752325271956,4.9714,2941.0,2940.9,1.8305273]
[1752325272155,0.67982,2940.9,2940.8,5.2441273]
[1752325272350,5.94122,2940.9,2940.8,6.9952273]
[1752325272852,5.94122,2940.9,2940.8,1.7511]
[1752325273650,3.39267,2940.7,2940.6,6.9952273]
[1752325273856,2.42287,2940.7,2940.6,6.9952273]
[1752325274648,2.633,2941.3,2941.2,1.5979]
[1752325274952,5.90103,2941.3,2941.2,5.1452]
[1752325275747,5.8499,2941.0,2940.9,9.19163553]
[1752325275955,5.8499,2941.0,2940.9,10.10903553]
[1752325276570,2.343,2941.0,2940.9,10.10903553]
[1752325276757,2.343,2941.0,2940.9,8.2802]
[1752325277052,5.84994,2940.8,2940.7,4.155]
[1752325277855,5.84994,2940.8,2940.7,5.98417229]
[1752325278056,5.84994,2940.8,2940.7,1.82917229]
[1752325278654,0.67987,2940.7,2940.6,4.8057]
[1752325278857,5.84997,2940.7,2940.6,4.8057]
[1752325279259,5.84997,2940.7,2940.6,6.63504627]
[1752325279462,5.84997,2940.7,2940.6,9.19214627]
[1752325279759,5.84997,2940.7,2940.6,10.10954627]
[1752325280451,5.84997,2940.7,2940.6,3.2078]
[1752325280655,5.84997,2940.7,2940.6,5.03714627]
[1752325281561,5.84997,2940.7,2940.6,3.2078]
[1752325281951,7.55655534,2940.7,2940.6,3.2078]
[1752325282151,1.69955,2941.0,2940.5,1.82934627]
[1752325282152,0.67989,2940.6,2940.5,3.42724627]
[1752325282450,5.84999,2940.6,2940.5,6.90119646]
[1752325282649,5.85006,2940.3,2940.2,7.3628]
[1752325282854,5.85006,2940.3,2940.2,8.2802]
[1752325282855,3.26176,2940.3,2940.2,8.2802]
[1752325283158,2.34316,2940.3,2940.2,10.71303114]
[1752325283560,2.34316,2940.3,2940.2,7.50523114]
[1752325283860,3.26176,2940.3,2940.2,10.71303114]
[1752325284358,0.67996,2940.3,2940.2,8.2802]
[1752325284561,0.67996,2940.3,2940.2,10.71303114]
[1752325284856,0.67996,2940.3,2940.2,9.98678534]
[1752325285653,1.69968,2940.7,2940.2,10.66676534]
[1752325285962,3.26167,2940.7,2940.6,6.90115942]
[1752325286158,2.34307,2940.7,2940.6,5.0724]
[1752325286363,0.67987,2940.7,2940.6,5.0724]
[1752325287857,3.26167,2940.7,2940.6,5.0724]
[1752325288561,5.84997,2940.7,2940.6,5.0724]
[1752325288952,3.26167,2940.7,2940.6,5.0724]
[1752325289359,0.67987,2940.7,2940.6,5.0724]
[1752325289959,0.67987,2940.7,2940.6,7.45887534]
[1752325290456,3.2078,2941.7,2940.6,6.70658534]
[1752325290661,2.34295,2941.2,2941.1,7.3628]
[1752325290962,5.84985,2941.2,2941.1,7.3628]
[1752325291663,2.3429,2941.4,2941.3,5.0724]
[1752325291863,0.9186,2941.6,2941.4,3.4745]
[1752325292062,3.26153,2941.3,2941.2,4.3441307]
[1752325292270,5.84983,2941.3,2941.2,1.5979]
[1752325292557,5.84985,2941.2,2941.1,3.2078]
[1752325293454,5.84985,2941.2,2941.1,4.8057]
[1752325294758,5.84987,2941.1,2941.0,1.8288307]
[1752325296360,5.84992,2940.9,2940.8,5.0366307]
[1752325297662,5.84992,2940.9,2940.8,1.8288307]
[1752325297861,5.84994,2940.8,2940.7,1.8288307]
[1752325298267,2.34309,2940.6,2940.5,2.5153]
[1752325298467,5.84999,2940.6,2940.5,5.0724]
[1752325298664,0.67991,2940.5,2940.4,2.43843796]
[1752325298968,5.85006,2940.3,2940.2,9.80123796]
[1752325299158,5.85006,2940.3,2940.2,7.51083796]
[1752325299363,5.85006,2940.3,2940.2,7.51690602]
[1752325299665,5.85006,2940.3,2940.2,4.155]
[1752325299864,3.5069,2940.1,2939.8,2.44450602]
[1752325300066,5.85015,2939.9,2939.8,1.5979]
[1752325300266,5.85015,2939.9,2939.8,4.155]
[1752325300474,5.85015,2939.9,2939.8,5.98721893]
[1752325300772,5.85015,2939.9,2939.8,3.43011893]
[1752325300967,5.85015,2939.9,2939.8,1.83221893]
[1752325301162,5.85017,2939.8,2939.7,3.43011893]
[1752325301367,5.85017,2939.8,2939.7,4.155]
[1752325301570,5.85017,2939.8,2939.7,5.98721893]
[1752325302365,5.85017,2939.8,2939.7,1.5979]
[1752325303163,0.6801,2939.7,2939.6,1.83221893]
[1752325303367,5.6879,2939.7,2939.6,4.9143]
[1752325303566,5.6879,2939.7,2939.5,5.04001893]
[1752325303567,0.68012,2939.6,2939.5,5.04001893]
[1752325303872,5.63444,2939.5,2939.4,1.83221893]
[1752325304168,5.63449,2939.3,2939.2,3.39901893]
[1752325304373,5.63449,2939.3,2939.2,4.8832]
[1752325306375,0.68019,2939.3,2939.2,6.71541893]
[1752325306969,2.28989,2939.3,2939.2,3.39901893]
[1752325307172,3.25629,2939.3,2939.2,4.9402]
[1752325307368,2.2898,2939.7,2939.6,1.5668]
[1752325307576,0.6801,2939.7,2939.6,4.9402]
[1752325308877,2.2898,2939.7,2939.6,4.9402]
[1752325309181,2.28989,2939.3,2939.2,5.04001893]
[1752325309377,7.38887534,2939.3,2939.2,3.2078]
[1752325309579,5.68229,2939.3,2939.2,3.2078]
[1752325309968,5.68229,2939.3,2939.2,4.7746]
[1752325310274,5.68217,2939.8,2939.7,2.5412]
[1752325310474,5.68217,2939.8,2939.7,3.9658]
[1752325310673,5.68217,2939.8,2939.7,1.5668]
[1752325310873,0.68007,2939.8,2939.7,8.148]
[1752325311075,2.28961,2940.5,2940.4,4.9402]
[1752325311579,0.67991,2940.5,2940.4,4.9402]
[1752325313473,5.68201,2940.5,2940.4,4.9402]
[1752325313869,2.28968,2940.2,2940.1,9.98021893]
[1752325314076,5.68208,2940.2,2940.1,7.1736]
[1752325314278,0.68003,2940.0,2939.9,1.83221893]
[1752325314476,0.68003,2940.0,2939.9,5.20561893]
[1752325314678,0.68003,2940.0,2939.9,3.3734]
[1752325314877,0.68003,2940.0,2939.9,4.05345]
[1752325315282,0.68003,2940.0,2939.9,3.3734]
[1752325315678,4.07243,2940.0,2939.9,5.19793114]
[1752325315877,4.07243,2940.0,2939.9,3.3734]
[1752325316777,1.64652,2939.6,2939.5,4.22353114]
[1752325316978,0.68014,2939.5,2939.4,5.19838505]
[1752325317282,4.07257,2939.4,2939.3,5.03285563]
[1752325317681,4.07257,2939.4,2939.3,8.40625563]
[1752325317873,4.07257,2939.4,2939.3,4.22405563]
[1752325318183,4.90801,2939.8,2939.2,1.14069563]
[1752325318377,0.6801,2939.7,2939.6,2.399]
[1752325318683,0.6801,2939.7,2939.6,3.3734]
[1752325318880,3.3924,2940.0,2939.6,3.3734]
[1752325319182,3.3924,2940.3,2939.9,3.3734]
[1752325319378,4.90762,2940.5,2940.0,2.399]
[1752325319580,0.68,2940.1,2940.0,3.3734]
[1752325319884,4.90762,2940.5,2940.0,0.68003]
[1752325320082,5.87402,2940.5,2940.0,0.68003]
[1752325320287,0.67996,2940.3,2940.2,3.3734]
[1752325320579,0.67994,2940.4,2940.3,3.3734]
[1752325320987,0.67994,2940.4,2940.3,4.05336]
[1752325321182,5.092,2940.9,2940.1,3.2078]
[1752325321183,0.67992,2940.5,2940.4,1.65433]
[1752325321486,0.6799,2940.6,2940.5,3.3734]
[1752325321883,5.6338,2941.2,2940.4,3.2078]
[1752325322189,5.6338,2941.2,2940.7,3.2078]
[1752325322190,0.67984,2940.8,2940.7,3.2078]
[1752325322482,5.6338,2942.0,2940.8,2.399]
[1752325322681,5.6338,2942.0,2941.4,3.3734]
[1752325322884,3.2078,2942.0,2941.3,28.92938534]
[1752325323084,0.67965,2941.7,2941.5,3.2078]
[1752325323284,0.67965,2941.7,2941.6,3.3734]
[1752325323480,0.67961,2941.8,2941.7,2.399]
[1752325323790,0.9664,2942.1,2941.9,0.9744]
[1752325324089,4.07197,2942.0,2941.9,0.9744]
[1752325324287,4.07206,2941.6,2941.5,5.6068]
[1752325324482,1.64606,2941.6,2941.5,5.6068]
[1752325324681,0.67966,2941.6,2941.5,5.6068]
[1752325325279,1.64606,2941.6,2941.5,5.6068]
[1752325325788,0.67966,2941.6,2941.5,5.6068]
[1752325326187,1.64606,2941.6,2941.5,5.6068]
[1752325326388,0.67966,2941.6,2941.5,6.5812]
[1752325327182,1.64606,2941.6,2941.5,5.6068]
[1752325327882,1.64606,2941.6,2941.5,6.5812]
[1752325328179,2.426,2941.5,2941.3,2.399]
[1752325328383,0.67973,2941.3,2941.2,6.5812]
[1752325328784,1.64613,2941.3,2941.2,2.2717]